bitfinex-derivatives/quotes_SOLF0:USTF0_20250623
["timestamp","ask_amount","ask_price","bid_price","bid_amount"]
[1750664349101,5.88904616,134.27,134.25,13.26124037]
[1750664349304,40.4899,134.28,134.25,13.26124037]
[1750664349505,5.8886021,134.27,134.25,13.26124037]
[1750664349711,40.4899,134.28,134.25,13.26124037]
[1750664349912,5.88848416,134.27,134.25,13.26124037]
[1750664350115,40.4899,134.28,134.25,13.26124037]
[1750664350317,5.88811209,134.27,134.25,13.26124037]
[1750664350509,40.4899,134.28,134.25,13.26124037]
[1750664350710,5.88794599,134.27,134.25,13.26124037]
[1750664350907,40.4899,134.28,134.25,13.26124037]
[1750664351111,5.88794599,134.27,134.25,13.26124037]
[1750664351411,40.4899,134.28,134.25,13.26124037]
[1750664351707,5.8874625,134.27,134.26,7.4459]
[1750664351906,5.8874625,134.27,134.25,5.81504037]
[1750664352115,47.9349,134.28,134.25,7.4465]
[1750664352316,5.88719419,134.27,134.25,7.4465]
[1750664352516,47.9349,134.28,134.25,7.4465]
[1750664352719,9.27545732,134.27,134.25,7.4465]
[1750664353017,47.9349,134.28,134.25,7.4465]
[1750664353213,9.27545732,134.27,134.25,7.4465]
[1750664353410,47.9349,134.28,134.25,7.4465]
[1750664353813,16.72048664,134.27,134.24,13.26174037]
[1750664354015,7.4455,134.27,134.22,5.81504037]
[1750664354216,7.4455,134.27,134.23,7.4473]
[1750664354512,7.446,134.26,134.23,7.4473]
[1750664354712,7.446,134.26,134.22,5.81504037]
[1750664355118,7.446,134.26,134.22,13.26274037]
[1750664355418,7.446,134.26,134.22,5.81504037]
[1750664355616,7.446,134.26,134.21,5.81504037]
[1750664356318,7.446,134.26,134.22,7.4477]
[1750664357525,5.88735381,134.25,134.21,5.81474037]
[1750664357721,7.4466,134.25,134.19,38.1]
[1750664357922,7.4466,134.25,134.21,5.81504037]
[1750664358122,46.30494037,134.28,134.21,13.26334037]
[1750664358424,8.76779642,134.27,134.21,13.26334037]
[1750664358611,3.38666815,134.26,134.21,13.26334037]
[1750664358922,10.83487242,134.25,134.21,13.26334037]
[1750664359116,7.4469,134.25,134.21,13.26334037]
[1750664360123,7.4469,134.25,134.22,7.4481]
[1750664363628,7.4461,134.26,134.22,7.4481]
[1750664363929,3.38857271,134.25,134.22,7.4481]
[1750664364127,7.4461,134.26,134.19,38.1]
[1750664364328,3.38516459,134.25,134.23,3.72685362]
[1750664364529,7.4461,134.26,134.23,3.72685362]
[1750664364729,3.38512858,134.25,134.23,3.72685362]
[1750664364929,7.4461,134.26,134.23,3.72685362]
[1750664365125,3.38517734,134.25,134.23,3.72685362]
[1750664365429,11.17295362,134.26,134.23,11.17445362]
[1750664365730,3.38517734,134.25,134.23,11.17445362]
[1750664365927,11.17295362,134.26,134.23,11.17445362]
[1750664366229,3.38542064,134.25,134.23,11.17445362]
[1750664366530,11.17295362,134.26,134.23,3.72685362]
[1750664366719,3.39570432,134.25,134.23,3.72685362]
[1750664366919,11.17295362,134.26,134.23,3.72685362]
[1750664367121,3.39570432,134.25,134.23,3.72685362]
[1750664367319,11.17295362,134.26,134.23,3.72685362]
[1750664367524,3.39570432,134.25,134.23,3.72685362]
[1750664367727,11.17295362,134.26,134.23,3.72685362]
[1750664367930,3.39570432,134.25,134.23,3.72685362]
[1750664368229,11.17295362,134.26,134.23,3.72685362]
[1750664368428,3.39575761,134.25,134.23,3.72685362]
[1750664368628,11.17295362,134.26,134.23,3.72685362]
[1750664368828,3.39575761,134.25,134.23,3.72685362]
[1750664369129,11.17295362,134.26,134.23,3.72685362]
[1750664369330,3.39551876,134.25,134.23,3.72685362]
[1750664369627,11.17295362,134.26,134.23,3.72685362]
[1750664369828,10.84211876,134.25,134.23,3.72685362]
[1750664370028,7.4466,134.25,134.23,3.72685362]
[1750664372935,3.72685362,134.25,134.21,3.72685362]
[1750664373236,7.12334557,134.24,134.2,3.72685362]
[1750664373429,7.12334557,134.23,134.19,3.72685362]
[1750664373630,7.4487,134.22,134.19,3.72685362]
[1750664374325,7.4487,134.22,134.18,5.82662294]
[1750664375633,7.4487,134.22,134.19,7.4497]
[1750664376735,7.4488,134.21,134.18,13.27672294]
[1750664377240,7.4495,134.2,134.18,5.82662294]
[1750664378836,43.88662294,134.22,134.13,38.02]
[1750664379132,43.88662294,134.22,134.15,5.82662294]
[1750664379334,7.4502,134.19,134.15,5.82662294]
[1750664379538,5.82662294,134.2,134.15,5.82662294]
[1750664379832,7.4507,134.18,134.15,13.27842294]
[1750664381138,7.4502,134.19,134.16,7.4514]
[1750664381928,13.27612294,134.2,134.17,7.4509]
[1750664382237,38.06,134.22,134.15,5.82662294]
[1750664382938,7.449,134.21,134.17,7.4506]
[1750664383237,2.461,134.23,134.19,5.82662294]
[1750664383632,9.9089,134.23,134.19,13.27612294]
[1750664384228,2.461,134.23,134.2,7.4492]
[1750664384435,9.8002,134.24,134.2,7.4492]
[1750664384636,40.3568,134.25,134.19,5.82662294]
[1750664384928,40.3568,134.25,134.21,7.4484]
[1750664385838,7.4471,134.24,134.21,7.4484]
[1750664386337,40.3568,134.25,134.2,7.4491]
[1750664386541,7.4476,134.23,134.2,7.4491]
[1750664386731,40.3568,134.25,134.2,7.4491]
[1750664386932,7.4474,134.24,134.21,7.4486]
[1750664387444,7.4474,134.24,134.19,5.82662294]
[1750664388041,7.4474,134.24,134.2,7.4489]
[1750664388843,7.4474,134.24,134.21,7.4486]
[1750664391046,7.4476,134.23,134.2,7.449]
[1750664391347,7.4473,134.24,134.21,7.4487]
[1750664391845,40.3568,134.25,134.19,5.82662294]
[1750664392141,7.4479,134.23,134.2,7.4489]
[1750664392346,40.3568,134.25,134.19,5.82662294]
[1750664392546,3.38572322,134.24,134.19,5.82662294]
[1750664392742,40.3568,134.25,134.14,1.8782]
[1750664392743,5.82662294,134.22,134.16,5.82662294]
[1750664393153,7.4498,134.2,134.17,7.4507]
[1750664393540,38.04,134.21,134.16,5.82662294]
[1750664393737,7.4501,134.19,134.16,13.27782294]
[1750664396451,7.4501,134.19,134.16,5.82662294]
[1750664397047,7.4504,134.18,134.16,5.82662294]
[1750664398447,7.4504,134.18,134.14,38.04]
[1750664398448,7.4513,134.17,134.14,51.31892294]
[1750664398653,7.4513,134.17,134.14,13.27892294]
[1750664399351,7.4506,134.18,134.14,13.27892294]
[1750664400053,7.451,134.17,134.14,13.27892294]
[1750664400252,7.451,134.17,134.14,5.82662294]
[1750664400751,2.3907,134.22,134.17,7.4504]
[1750664400952,8.21732294,134.22,134.16,5.82662294]
[1750664401151,3.38613051,134.21,134.16,5.82662294]
[1750664401353,7.4497,134.2,134.16,5.82662294]
[1750664402041,2.3907,134.22,134.16,5.82662294]
[1750664402445,2.3907,134.22,134.17,5.82662294]
[1750664402853,7.4489,134.21,134.18,7.4501]
[1750664403053,2.3907,134.22,134.18,7.4501]
[1750664403353,9.8392,134.22,134.18,7.4501]
[1750664403653,2.3907,134.22,134.18,7.4501]
[1750664404656,7.4488,134.21,134.18,7.4501]
[1750664405153,7.4488,134.21,134.17,13.27722294]
[1750664405556,7.4488,134.21,134.17,7.4506]
[1750664405854,8.21732294,134.22,134.17,7.4506]
[1750664406354,7.449,134.21,134.17,7.4506]
[1750664406859,7.449,134.21,134.18,7.4502]
[1750664410456,9.8389,134.22,134.16,5.82662294]
[1750664410663,40.4085,134.23,134.19,7.4497]
[1750664410961,3.39006883,134.22,134.18,5.82662294]
[1750664411161,46.23512294,134.23,134.17,5.82662294]
[1750664411362,3.39096725,134.22,134.17,5.82662294]
[1750664411557,40.4085,134.23,134.19,5.82662294]
[1750664412360,47.8564,134.23,134.19,13.27602294]
[1750664413370,47.8564,134.23,134.2,7.4492]
[1750664415475,47.8564,134.23,134.19,13.27622294]
[1750664415670,3.39413902,134.22,134.19,13.27622294]
[1750664415870,47.8564,134.23,134.19,13.27622294]
[1750664416069,10.84233902,134.22,134.19,13.27622294]
[1750664416272,7.4482,134.22,134.19,13.27622294]
[1750664417375,7.4482,134.22,134.19,5.84822294]
[1750664420572,7.4488,134.21,134.17,5.82662294]
[1750664421074,7.4496,134.2,134.17,5.82662294]
[1750664421276,5.82662294,134.22,134.15,42.24524588]
[1750664421573,3.39566422,134.21,134.15,42.24524588]
[1750664421772,5.82662294,134.22,134.15,42.24524588]
[1750664421773,10.84536422,134.2,134.16,7.4512]
[1750664421972,7.4497,134.2,134.16,7.4512]
[1750664422565,7.4499,134.19,134.16,7.4512]
[1750664423375,7.4499,134.19,134.15,49.69704588]
[1750664423674,8.05163276,134.23,134.13,1.8794]
[1750664423675,7.4505,134.18,134.13,5.82662294]
[1750664423874,43.80662294,134.2,134.14,7.4523]
[1750664424066,5.7503792,134.19,134.13,5.82662294]
[1750664424265,2.3547,134.19,134.13,5.82662294]
[1750664424464,7.4507,134.18,134.15,7.4517]
[1750664424971,43.80662294,134.2,134.15,5.82662294]
[1750664425170,43.80662294,134.2,134.16,7.4512]
[1750664425377,43.80662294,134.2,134.15,5.82662294]
[1750664425677,51.25632294,134.2,134.16,7.4512]
[1750664426576,45.4297,134.2,134.16,7.4512]
[1750664429380,10.84359481,134.19,134.16,7.4512]
[1750664429582,10.84359481,134.19,134.15,7.4517]
[1750664429880,43.80662294,134.2,134.15,7.4517]
[1750664430081,3.39381529,134.19,134.14,5.82662294]
[1750664430380,43.80662294,134.2,134.14,5.82662294]
[1750664430981,43.80662294,134.2,134.16,7.4511]
[1750664431880,43.80662294,134.2,134.15,7.4518]
[1750664432179,7.4502,134.19,134.15,7.4518]
[1750664432482,7.4502,134.19,134.14,5.82662294]
[1750664433381,7.4502,134.19,134.15,7.4515]
[1750664433783,7.4504,134.18,134.15,7.4515]
[1750664435788,7.45,134.19,134.16,7.4514]
[1750664437284,7.45,134.19,134.15,7.4518]
[1750664438689,43.80662294,134.2,134.15,7.4518]
[1750664438889,3.39613924,134.19,134.15,7.4518]
[1750664439084,3.39588005,134.18,134.13,5.82662294]
[1750664439288,43.80662294,134.2,134.13,5.82662294]
[1750664439489,3.39588705,134.19,134.13,5.82662294]
[1750664439788,7.4507,134.18,134.15,7.452]
[1750664439988,43.80662294,134.2,134.12,41.73863079]
[1750664440191,3.39521381,134.19,134.12,45.10295373]
[1750664440384,7.4511,134.17,134.14,7.4523]
[1750664441284,9.8999,134.18,134.12,45.10295373]
[1750664442389,2.4513,134.19,134.14,5.82662294]
[1750664442390,7.45,134.19,134.14,5.82662294]
[1750664443090,7.45,134.19,134.15,7.4516]
[1750664444586,45.4295,134.2,134.16,5.82662294]
[1750664445297,37.98,134.2,134.16,5.82662294]
[1750664445494,2.5281,134.23,134.18,5.82662294]
[1750664445687,2.5281,134.23,134.2,7.449]
[1750664446897,3.39449944,134.22,134.2,7.449]
[1750664447195,2.5281,134.23,134.2,7.449]
[1750664447493,2.5281,134.23,134.18,5.82662294]
[1750664447692,4.9441,134.23,134.17,5.82662294]
[1750664447893,10.84301273,134.22,134.17,5.82662294]
[1750664448094,7.4484,134.22,134.17,5.82662294]
[1750664449797,7.4484,134.22,134.19,7.4497]
[1750664451195,7.4484,134.22,134.17,5.82662294]
[1750664451196,7.4484,134.22,134.18,7.4501]
[1750664451799,7.4488,134.21,134.18,7.4501]
[1750664451990,7.4488,134.21,134.16,37.94]
[1750664451991,10.77072294,134.23,134.19,7.4497]
[1750664452796,3.39386276,134.22,134.19,7.4497]
[1750664453001,10.77072294,134.23,134.19,7.4497]
[1750664453194,12.392,134.23,134.19,7.4497]
[1750664454196,12.392,134.23,134.19,13.27632294]
[1750664454502,2.416,134.23,134.19,5.82662294]
[1750664455094,45.3872,134.24,134.21,7.4486]
[1750664455994,45.3872,134.24,134.2,7.449]
[1750664457898,7.4476,134.23,134.2,7.449]
[1750664458202,37.94,134.24,134.18,5.82662294]
[1750664458401,7.4485,134.22,134.18,5.82662294]
[1750664459300,7.4485,134.22,134.18,13.27662294]
[1750664460305,7.449,134.21,134.18,5.82662294]
[1750664461001,7.449,134.21,134.18,13.27692294]
[1750664461398,7.4484,134.22,134.18,13.27692294]
[1750664461611,37.94,134.24,134.18,5.82662294]
[1750664461900,3.39274141,134.23,134.18,5.82662294]
[1750664462093,7.4479,134.23,134.2,7.4492]
[1750664462492,7.4479,134.23,134.18,5.82662294]
[1750664462692,7.4485,134.22,134.18,5.82662294]
[1750664463403,5.82662294,134.22,134.16,43.76662294]
[1750664463602,3.39350133,134.21,134.16,43.76662294]
[1750664463800,7.4493,134.2,134.16,5.82662294]
[1750664464107,9.7487,134.2,134.16,5.82662294]
[1750664464399,2.2994,134.2,134.15,5.82662294]
[1750664464599,46.06602294,134.2,134.14,5.82662294]
[1750664464805,48.57862294,134.2,134.14,13.27872294]
[1750664465006,7.4507,134.18,134.14,13.27872294]
[1750664466403,7.4507,134.18,134.15,7.452]
[1750664466604,7.4503,134.19,134.15,7.452]
[1750664466907,48.57862294,134.2,134.15,7.452]
[1750664467401,7.4503,134.19,134.15,7.452]
[1750664471310,48.57862294,134.2,134.15,7.452]
[1750664472114,7.4505,134.18,134.15,7.452]
[1750664472713,7.45,134.19,134.16,7.4514]
[1750664473316,56.02832294,134.2,134.16,7.4511]
[1750664473514,48.57862294,134.2,134.14,5.82662294]
[1750664473718,7.4501,134.19,134.16,7.4514]
[1750664475518,56.02822294,134.2,134.16,7.4514]
[1750664475719,48.57862294,134.2,134.15,7.4519]
[1750664476724,7.4504,134.18,134.15,7.4519]
[1750664477323,7.4504,134.18,134.14,5.82662294]
[1750664478728,7.4504,134.18,134.15,7.4519]
[1750664480922,5.82662294,134.18,134.13,7.12336432]
[1750664481119,5.82662294,134.18,134.11,5.82662294]
[1750664481523,7.4523,134.15,134.12,7.4535]
[1750664482123,43.70662294,134.16,134.1,5.82662294]
[1750664482426,5.85901199,134.15,134.09,37.88]
[1750664482628,7.4535,134.13,134.1,7.4546]
[1750664482830,7.2647,134.15,134.09,37.88]
[1750664483029,3.39429403,134.14,134.08,7.12387188]
[1750664483228,7.4528,134.14,134.1,7.4548]
[1750664484225,7.4533,134.13,134.1,7.4548]
[1750664484431,7.4533,134.13,134.09,7.4552]
[1750664486535,7.4533,134.13,134.1,7.4548]
[1750664487334,7.4528,134.14,134.1,7.4548]
[1750664488534,7.4531,134.13,134.1,7.4548]
[1750664488931,43.72662294,134.12,134.05,71.27469036]
[1750664489235,5.82662294,134.1,134.03,1.9753397]
[1750664489426,5.82662294,134.1,134.03,5.82662294]
[1750664490734,7.4562,134.08,134.05,7.4575]
[1750664490934,5.82662294,134.1,134.05,7.4575]
[1750664491231,45.3557,134.09,134.05,7.4575]
[1750664491634,37.9,134.09,134.05,7.4575]
[1750664491837,44.9732,134.09,134.05,7.4575]
[1750664492336,7.456,134.08,134.03,5.82662294]
[1750664493736,7.456,134.08,134.05,7.4573]
[1750664494633,7.456,134.08,134.04,7.458]
[1750664496234,13.28262294,134.08,134.04,7.458]
[1750664496432,7.4566,134.07,134.03,7.4585]
[1750664496830,13.28282294,134.08,134.04,7.4581]
[1750664497038,5.82662294,134.08,134.02,43.72662294]
[1750664497340,5.82662294,134.08,134.03,7.4585]
[1750664497540,7.4568,134.07,134.03,7.4585]
[1750664497840,7.4568,134.07,134.02,43.72662294]
[1750664499329,13.28292294,134.08,134.04,7.4578]
[1750664499541,13.28292294,134.08,134.02,43.72662294]
[1750664500037,13.28292294,134.08,134.04,7.4577]
[1750664501035,44.9732,134.09,134.04,5.82662294]
[1750664501639,52.4289,134.09,134.05,7.4574]
[1750664502336,44.9732,134.09,134.04,7.4579]
[1750664502543,5.82662294,134.08,134.02,43.72662294]
[1750664502733,7.4568,134.07,134.02,43.72662294]
[1750664503040,5.82662294,134.08,134.04,7.4578]
[1750664503338,13.28302294,134.08,134.04,7.4578]
[1750664504840,52.4288,134.09,134.04,5.82662294]
[1750664505246,44.9732,134.09,134.04,5.82662294]
[1750664506347,7.4564,134.08,134.04,13.28452294]
[1750664507440,52.4288,134.09,134.05,7.4575]
[1750664507842,44.9732,134.09,134.03,5.82662294]
[1750664508046,7.4564,134.08,134.04,7.458]
[1750664509647,7.4565,134.07,134.03,7.4584]
[1750664510643,7.4571,134.06,134.03,7.4584]
[1750664510947,5.82662294,134.08,134.03,7.4584]
[1750664511350,7.4568,134.07,134.03,7.4584]
[1750664513349,5.82662294,134.08,134.02,7.4591]
[1750664513553,5.82662294,134.06,133.99,643.74]
[1750664513753,5.82662294,134.06,133.99,5.82662294]
[1750664514053,7.4587,134.03,134.0,7.4604]
[1750664514251,5.82662294,134.04,133.98,42.06324588]
[1750664514443,5.82662294,134.04,133.98,5.82662294]
[1750664514647,13.28502294,134.04,133.98,5.82662294]
[1750664515248,13.28502294,134.04,134.01,7.4596]
[1750664515452,13.28502294,134.04,133.98,5.82662294]
[1750664515753,13.28502294,134.04,134.0,7.4601]
[1750664516753,7.4587,134.03,134.0,7.4601]
[1750664516948,5.82662294,134.04,133.99,7.4607]
[1750664517150,5.82662294,134.04,133.97,37.53503352]
[1750664518247,43.68662294,134.05,133.97,37.53503352]
[1750664518448,7.4585,134.04,134.0,7.4599]
[1750664518653,7.4585,134.04,133.97,37.53503352]
[1750664519255,7.4585,134.04,134.0,7.4599]
[1750664519455,7.4588,134.03,134.0,7.4599]
[1750664519657,7.4588,134.03,134.0,7.4603]
[1750664520151,7.4588,134.03,133.99,7.4606]
[1750664520353,13.28542294,134.03,133.99,7.4606]
[1750664521656,5.82662294,134.03,133.97,37.53503352]
[1750664522259,13.28552294,134.03,133.97,37.53503352]
[1750664523261,13.28552294,134.03,133.99,7.4606]
[1750664523964,13.28552294,134.03,134.0,7.4603]
[1750664524160,7.4589,134.03,134.0,7.4603]
[1750664524459,7.4589,134.03,133.97,37.53503352]
[1750664524660,7.4593,134.02,133.99,7.4606]
[1750664525461,7.4593,134.02,133.98,7.4613]
[1750664526661,5.82662294,134.03,133.95,2.5214]
[1750664526865,5.82662294,134.03,133.95,8.34802294]
[1750664527365,7.4593,134.02,133.98,7.4612]
[1750664527562,7.4593,134.02,133.97,5.82662294]
[1750664527956,13.28562294,134.03,133.97,5.82662294]
[1750664528160,7.1446,134.04,133.97,5.82662294]
[1750664528361,7.4587,134.03,134.0,7.4603]
[1750664530268,14.603,134.04,134.0,7.4603]
[1750664532371,44.9646,134.04,134.01,7.4596]
[1750664533176,52.4229,134.04,134.0,7.46]
[1750664533577,52.4229,134.04,133.99,5.82662294]
[1750664533878,14.6029,134.04,133.99,5.82662294]
[1750664534079,52.4229,134.04,133.99,5.82662294]
[1750664534478,37.82,134.04,134.01,7.4595]
[1750664534782,37.82,134.04,133.97,37.82]
[1750664534980,51.10512294,134.04,134.0,7.4601]
[1750664535682,7.4587,134.03,134.0,7.4601]
[1750664536481,51.10502294,134.04,134.0,7.4601]
[1750664537281,51.10502294,134.04,133.98,5.82662294]
[1750664538081,51.10502294,134.04,134.0,7.4601]
[1750664538882,7.4588,134.03,134.0,7.4601]
[1750664539784,51.10502294,134.04,134.0,7.4601]
[1750664540686,7.4587,134.03,134.0,7.4601]
[1750664540885,7.4587,134.03,133.99,7.4604]
[1750664542082,5.82662294,134.02,133.97,37.82]
[1750664542777,7.4602,134.01,133.97,45.2816]
[1750664544587,7.4602,134.01,133.98,7.4614]
[1750664548784,7.4602,134.01,133.97,45.2817]
[1750664549789,7.4602,134.01,133.97,7.4617]
[1750664550179,7.4602,134.01,133.98,7.4612]
[1750664550989,7.4601,134.01,133.97,7.4618]
[1750664555089,7.4601,134.01,133.95,8.34802294]
[1750664555291,13.28612294,134.02,133.95,8.34802294]
[1750664556086,13.28612294,134.02,133.98,7.4612]
[1750664556291,3.74053956,134.01,133.98,7.4612]
[1750664556992,11.20033956,134.01,133.98,7.4612]
[1750664557192,3.74053956,134.0,133.98,7.4612]
[1750664559395,3.74053956,133.99,133.94,52.13390699]
[1750664559595,3.74053956,134.0,133.97,3.74053956]
[1750664559789,3.74053956,134.01,133.97,3.74053956]
[1750664560596,3.74053956,134.02,133.98,3.74053956]
[1750664561091,42.7602,134.04,133.95,9.27469036]
[1750664561092,40.3052,134.04,134.0,3.74053956]
[1750664561398,7.11636174,134.03,134.0,3.74053956]
[1750664561695,3.74053956,134.03,134.0,3.74053956]
[1750664561888,3.74053956,134.03,134.01,7.4595]
[1750664562394,3.74053956,134.03,134.0,3.74053956]
[1750664562696,3.74053956,134.02,134.0,7.4599]
[1750664563698,3.74053956,134.03,134.01,7.4598]
[1750664564394,51.12099118,134.04,134.01,7.4598]
[1750664566501,51.12099118,134.04,134.0,7.4601]
[1750664568803,51.12099118,134.04,134.01,7.4598]
[1750664571005,43.66279118,134.04,134.01,7.4598]
[1750664572210,2.4182,134.08,134.0,5.84279118]
[1750664572211,37.76,134.06,134.0,5.84279118]
[1750664572508,3.37883409,134.05,134.0,5.84279118]
[1750664572712,45.2173,134.06,134.02,7.4588]
[1750664574706,37.76,134.06,134.03,7.4583]
[1750664576108,45.2171,134.06,134.03,7.4583]
[1750664576310,45.2171,134.06,134.02,7.459]
[1750664577903,37.76,134.12,134.04,5.84279118]
[1750664578099,3.38027658,134.11,134.1,5.84279118]
[1750664578303,2.3351,134.14,134.1,5.84279118]
[1750664578608,3.38050429,134.13,134.1,5.84279118]
[1750664578804,43.39554512,134.17,134.13,7.4528]
[1750664578805,37.76,134.17,134.13,7.4528]
[1750664578996,37.76,134.17,134.12,5.84279118]
[1750664578997,8.92696388,134.16,134.12,5.84279118]
[1750664579203,3.38101188,134.15,134.12,5.84279118]
[1750664579399,45.2112,134.17,134.12,13.29609118]
[1750664579708,8.92969126,134.16,134.12,13.29609118]
[1750664580006,3.38105019,134.15,134.12,13.29609118]
[1750664580201,45.2112,134.17,134.13,7.4531]
[1750664580398,3.38109349,134.16,134.13,7.4531]
[1750664580604,3.38109349,134.15,134.13,7.4531]
[1750664580809,7.4515,134.16,134.12,13.29629118]
[1750664581110,3.20713094,134.15,134.1,5.84279118]
[1750664581301,5.84279118,134.16,134.1,13.29719118]
[1750664581500,3.20714124,134.15,134.1,13.29719118]
[1750664581702,5.84279118,134.16,134.1,13.29719118]
[1750664581913,3.20704431,134.15,134.1,13.29719118]
[1750664582210,5.84279118,134.16,134.11,7.4542]
[1750664583211,5.84279118,134.16,134.1,5.84279118]
[1750664583709,43.60279118,134.17,134.1,5.84279118]
[1750664583907,43.60279118,134.17,134.12,5.84279118]
[1750664584212,7.4518,134.16,134.12,13.29619118]
[1750664584404,37.76,134.17,134.12,5.84279118]
[1750664584607,2.3845,134.18,134.14,5.84279118]
[1750664584804,49.8498,134.2,134.14,5.84279118]
[1750664585112,42.4003,134.2,134.14,5.84279118]
[1750664585405,7.4502,134.19,134.14,5.84279118]
[1750664585710,42.4003,134.2,134.14,5.84279118]
[1750664586902,49.8499,134.2,134.15,7.4517]
[1750664587614,7.45,134.19,134.14,5.84279118]
[1750664588513,42.4003,134.2,134.14,5.84279118]
[1750664588708,42.4003,134.2,134.16,5.84279118]
[1750664588709,40.0751,134.2,134.16,5.84279118]
[1750664588909,2.3351,134.2,134.17,7.4506]
[1750664589213,2.3351,134.2,134.16,5.84279118]
[1750664589413,7.4484,134.22,134.16,5.84279118]
[1750664590615,7.4484,134.22,134.16,43.56279118]
[1750664590914,7.4488,134.21,134.16,43.56279118]
[1750664591805,7.4488,134.21,134.17,7.4506]
[1750664592115,7.4483,134.22,134.16,43.56279118]
[1750664592309,13.29109118,134.22,134.18,7.4503]
[1750664592815,37.74,134.23,134.16,37.72]
[1750664593014,37.74,134.23,134.19,5.84279118]
[1750664593316,37.74,134.23,134.19,13.29219118]
[1750664593507,37.74,134.23,134.19,5.84279118]
[1750664593712,2.4576,134.24,134.19,5.84279118]
[1750664594012,2.4576,134.24,134.21,7.4484]
[1750664594716,2.4576,134.24,134.19,5.84279118]
[1750664596812,2.4576,134.24,134.2,37.66]
[1750664597116,2.4576,134.24,134.21,7.4482]
[1750664597418,2.4576,134.24,134.2,45.109]
[1750664597607,2.4576,134.24,134.2,37.66]
[1750664598719,9.9047,134.24,134.2,45.109]
[1750664598916,9.9047,134.24,134.17,2.5105]
[1750664598917,2.4576,134.24,134.17,40.1705]
[1750664599112,8.30039118,134.24,134.18,5.84279118]
[1750664599514,8.30039118,134.24,134.19,7.4494]
[1750664599814,8.30039118,134.24,134.18,5.84279118]
[1750664600815,7.4476,134.23,134.19,7.4494]
[1750664602216,7.4476,134.23,134.2,7.4492]
[1750664602620,7.4476,134.23,134.18,5.84279118]
[1750664603116,8.30039118,134.24,134.18,5.84279118]
[1750664603315,8.30039118,134.24,134.14,1.8798]
[1750664603520,7.4479,134.23,134.16,5.84279118]
[1750664603711,5.84279118,134.23,134.16,5.84279118]
[1750664604112,5.84279118,134.23,134.15,37.66]
[1750664604308,5.84279118,134.21,134.15,37.66]
[1750664605318,7.4494,134.2,134.16,7.451]
[1750664605518,5.84279118,134.21,134.15,37.66]
[1750664605924,47.4725,134.22,134.18,7.45]
[1750664606222,40.024,134.22,134.16,5.84279118]
[1750664606423,40.024,134.22,134.18,7.4498]
[1750664606612,40.024,134.22,134.16,5.84279118]
[1750664607721,40.024,134.22,134.19,7.4495]
[1750664611834,40.024,134.22,134.16,5.84279118]
[1750664612335,40.024,134.22,134.15,37.66]
[1750664612534,40.024,134.22,134.16,5.84279118]
[1750664612936,47.4725,134.22,134.18,7.4503]
[1750664613838,47.4725,134.22,134.17,7.4506]
[1750664615138,7.4488,134.21,134.17,7.4506]
[1750664616042,5.84279118,134.21,134.15,37.66]
[1750664616235,5.84279118,134.21,134.15,43.50279118]
[1750664616735,13.29179118,134.21,134.17,7.4506]
[1750664618540,7.449,134.21,134.17,7.4506]
[1750664622944,3.20667183,134.2,134.17,7.4506]
[1750664623246,7.449,134.21,134.17,7.4506]
[1750664623548,3.20687707,134.2,134.17,7.4506]
[1750664623746,7.449,134.21,134.17,7.4506]
[1750664623946,3.20642796,134.2,134.17,7.4506]
[1750664624145,5.84279118,134.2,134.12,37.62]
[1750664624350,5.84279118,134.18,134.12,43.46279118]
[1750664625050,13.29319118,134.18,134.14,7.4523]
[1750664625349,4.8214,134.19,134.14,5.84279118]
[1750664625546,46.96601858,134.22,134.12,37.62]
[1750664625547,40.024,134.22,134.16,5.84279118]
[1750664625849,14.63543252,134.21,134.17,7.4504]
[1750664626047,3.20669871,134.2,134.16,5.84279118]
[1750664626248,53.31519118,134.22,134.16,5.84279118]
[1750664626547,14.63577119,134.21,134.16,5.84279118]
[1750664626745,53.31519118,134.22,134.16,5.84279118]
[1750664626948,8.77204933,134.21,134.16,5.84279118]
[1750664627145,3.2105988,134.2,134.16,5.84279118]
[1750664627348,53.31519118,134.22,134.16,5.84279118]